bitfinex/quotes_ETHUSD_20220118
["timestamp","ask_amount","ask_price","bid_price","bid_amount"]
[1642523365788,6.7515882,3120.4,3119.9,0.00219189]
[1642523366090,1.31683655,3120.2,3119.9,9.189e-05]
[1642523366288,0.1282,3120.1,3119.9,9.189e-05]
[1642523366493,0.4282,3120.1,3119.9,9.189e-05]
[1642523366788,0.3,3120.1,3119.9,9.189e-05]
[1642523367089,0.1282,3120.2,3119.9,9.189e-05]
[1642523367488,0.1282,3120.2,3120.1,0.00679821]
[1642523367489,1.73154,3120.2,3120.1,0.00679821]
[1642523367690,6.59163689,3120.2,3120.1,0.00679821]
[1642523367888,6.93018816,3120.2,3120.1,0.00679821]
[1642523368287,11.97395277,3120.2,3120.1,0.00679821]
[1642523370540,8.71721348,3120.2,3120.1,0.00679821]
[1642523370943,8.71721348,3120.2,3119.9,0.00177627]
[1642523370944,5.95,3120.1,3119.8,0.00113685]
[1642523371143,5.96298249,3119.9,3119.8,0.00113685]
[1642523371342,6.42498249,3119.9,3119.5,0.00284212]
[1642523371543,0.1282,3119.8,3119.1,0.00511581]
[1642523371748,0.00387047,3119.7,3118.9,0.00625266]
[1642523371943,0.1282,3119.6,3118.9,0.00625266]
[1642523372246,1.10565549,3119.2,3118.9,0.00625266]
[1642523372445,1.60382,3119.1,3118.9,0.00625266]
[1642523373288,1.90382,3119.1,3118.9,0.00625266]
[1642523373689,3.53300068,3119.1,3118.9,0.00625266]
[1642523373993,5.95,3119.0,3118.8,0.0068252]
[1642523374188,9.15802,3119.0,3118.8,0.0068252]
[1642523374392,10.79530071,3119.0,3118.8,0.0068252]
[1642523374592,6.75896769,3118.9,3118.5,0.0039666]
[1642523374792,0.00760086,3118.7,3118.5,0.0039666]
[1642523374993,2.24028662,3118.7,3118.6,0.00170527]
[1642523375193,5.95,3118.6,3118.5,0.0039666]
[1642523375495,7.15294521,3118.6,3118.5,0.0039666]
[1642523375693,5.05,3118.5,3118.1,1.53851127]
[1642523375894,6.15203,3118.5,3118.1,1.53851127]
[1642523376093,1.13649873,3118.5,3118.2,0.00227369]
[1642523376294,1.10203,3118.5,3118.2,0.00227369]
[1642523376698,0.3,3118.5,3118.2,0.00227369]
[1642523376940,3.237397,3118.8,3118.4,1.65465797]
[1642523377139,3.537397,3118.8,3118.6,1.46608787]
[1642523377539,3.237397,3118.8,3118.6,1.46608787]
[1642523377738,0.8018339,3118.7,3118.5,0.80186]
[1642523377939,0.8018339,3118.7,3118.3,0.1282]
[1642523377940,0.84074865,3118.7,3118.3,0.1282]
[1642523378138,0.84074865,3118.7,3118.4,1.6037]
[1642523378338,0.84074865,3118.7,3118.4,1.60483685]
[1642523378738,1.94271865,3118.7,3118.4,1.60483685]
[1642523378938,1.6039056,3118.6,3118.4,1.60483685]
[1642523380139,2.4059056,3118.6,3118.4,0.00113685]
[1642523380810,2.4059056,3118.6,3118.3,0.00170527]
[1642523381310,1.50474726,3118.5,3118.3,0.00170527]
[1642523381509,3.40889726,3118.5,3118.3,0.00170527]
[1642523381710,5.65207,3118.4,3118.3,0.00170527]
[1642523382311,4.3,3118.3,3117.9,0.80206]
[1642523382511,4.6,3118.3,3117.9,0.80206]
[1642523382711,1.9041442,3118.3,3118.0,0.00170527]
[1642523383211,0.82287644,3118.2,3118.0,0.00170527]
[1642523383411,0.82287644,3118.2,3118.0,0.12990527]
[1642523383813,0.80207,3118.3,3118.1,0.00113685]
[1642523384013,0.80207,3118.3,3118.2,0.1282]
[1642523384213,0.75207,3118.3,3118.1,3.80105767]
[1642523384633,1.57538657,3118.3,3118.1,3.80105767]
[1642523384831,1.87538657,3118.3,3118.1,3.80105767]
[1642523385031,1.87538657,3118.3,3118.1,3.52395277]
[1642523385435,1.05207,3118.3,3118.1,3.52395277]
[1642523386037,1.35207,3118.3,3118.1,1.32785195]
[1642523386236,1.35207,3118.3,3118.1,0.00113685]
[1642523386440,5.9,3118.1,3117.8,0.1282]
[1642523386637,0.1282,3118.0,3117.9,0.00113685]
[1642523386838,5.95,3117.9,3117.2,2.41840292]
[1642523387040,1.12885073,3117.4,3117.2,2.41840292]
[1642523387340,2.2151349,3117.4,3117.3,0.00341054]
[1642523388180,1.08628417,3117.4,3117.3,0.00341054]
[1642523388585,1.08628417,3117.4,3117.0,0.80739581]
[1642523388787,1.88857417,3117.4,3117.1,0.00454738]
[1642523388989,0.1283,3117.3,3117.1,0.00454738]
[1642523389186,3.00187417,3117.4,3117.0,0.00511581]
[1642523389484,3.00187417,3117.4,3116.7,0.00682108]
[1642523389485,2.19958417,3117.4,3116.7,0.00682108]
[1642523389686,2.5355428,3117.3,3116.7,0.00682108]
[1642523389888,0.80243,3117.1,3116.7,0.00682108]
[1642523390087,0.93073,3117.1,3116.7,0.00682108]
[1642523390286,0.80243,3117.0,3116.7,0.00682108]
[1642523390487,1.94328465,3117.2,3116.6,0.0073895]
[1642523390687,1.90485,3117.2,3116.6,0.0073895]
[1642523391087,0.802438,3117.1,3116.6,0.0073895]
[1642523391286,1.90485,3117.2,3116.5,0.00795792]
[1642523391287,1.69691824,3117.0,3116.5,0.00795792]
[1642523391487,1.69691824,3117.0,3116.6,2.20512695]
[1642523391691,0.89460824,3117.0,3116.6,2.20512695]
[1642523391948,1.19460824,3117.0,3116.7,0.00682108]
[1642523392337,1.99683824,3117.0,3116.8,0.0028577]
[1642523392543,1.10223,3117.0,3116.8,0.0028577]
[1642523392739,1.10223,3117.0,3116.9,0.00568423]
[1642523393341,0.80223,3117.0,3116.9,0.00568423]
[1642523393541,0.75223,3117.0,3116.9,0.00568423]
[1642523394141,1.08241957,3117.0,3116.9,0.00568423]
[1642523396390,0.78241957,3117.0,3116.9,0.00568423]
[1642523396689,1.08241957,3117.0,3116.9,0.00568423]
[1642523397694,2.49356543,3117.0,3116.9,0.00568423]
[1642523397889,1.08241957,3117.0,3116.9,0.00568423]
[1642523398290,0.68023,3117.0,3116.9,0.00568423]
[1642523398491,0.67423,3117.0,3116.9,0.00568423]
[1642523398690,0.59323,3117.0,3116.9,0.13398423]
[1642523398891,0.00309671,3117.1,3116.9,2.35925552]
[1642523399090,0.00309671,3117.1,3117.0,0.1283]
[1642523399290,0.00309671,3117.1,3117.0,0.13341581]
[1642523399534,0.00309671,3117.1,3117.0,0.00511581]
[1642523400135,1.05520671,3117.3,3117.0,0.00511581]
[1642523400337,0.3,3117.2,3117.0,0.00511581]
[1642523400943,1.16755091,3117.1,3117.0,0.00511581]
[1642523401737,3.30968082,3117.1,3117.0,0.00511581]
[1642523401937,3.43798082,3117.1,3117.0,0.00511581]
[1642523402139,6.63524588,3117.1,3117.0,0.00511581]
[1642523402337,11.54400632,3117.1,3117.0,0.00231581]
[1642523402538,5.95,3117.0,3115.9,10.4389]
[1642523402740,5.80160949,3116.9,3116.2,0.0035622]
[1642523402942,0.8025631,3116.8,3116.2,0.0035622]
[1642523403185,1.38993593,3116.6,3116.2,0.0035622]
[1642523403385,0.1283,3116.5,3116.2,0.0035622]
[1642523403784,0.0783,3116.5,3116.2,0.0035622]
[1642523404386,0.88088,3116.5,3116.2,0.0035622]
[1642523404586,1.88347,3116.5,3116.2,0.0035622]
[1642523404986,1.88347,3116.5,3116.2,0.0017442]
[1642523404987,4.9,3116.4,3116.2,0.0017442]
[1642523405591,5.1,3116.3,3115.6,1.60503]
[1642523405786,1.81469016,3115.8,3115.6,1.60503]
[1642523405987,1.2297824,3115.9,3115.6,1.60503]
[1642523406190,1.60523,3116.0,3115.6,1.60503]
[1642523406388,0.3,3115.9,3115.6,1.60503]
[1642523406791,0.80262,3115.9,3115.7,0.0073895]
[1642523407036,0.03374332,3116.0,3115.7,0.0073895]
[1642523407235,1.60484,3116.4,3116.0,1.31326807]
[1642523407436,1.60484,3116.4,3115.9,1.6048]
[1642523407635,1.60484,3116.4,3116.1,0.00511581]
[1642523407835,2.4073018,3116.4,3116.0,0.00568423]
[1642523408036,2.44246295,3116.4,3116.0,0.00568423]
[1642523408439,0.80241,3116.3,3116.0,0.80808423]
[1642523408641,16.10441,3116.3,3116.0,0.80808423]
[1642523408841,16.10441,3116.3,3116.1,0.00511581]
[1642523409042,15.002,3116.3,3116.1,0.00511581]
[1642523409242,15.002,3116.3,3116.2,4.70854187]
[1642523409441,15.002,3116.3,3116.2,5.19537296]
[1642523409641,15.002,3116.3,3116.2,6.19992034]
[1642523410888,15.002,3116.3,3116.2,5.19992034]
[1642523411086,15.002,3116.3,3116.2,6.19992034]
[1642523411685,15.002,3116.3,3116.2,1.84992034]
[1642523412086,15.002,3116.3,3116.2,0.84992034]
[1642523412286,15.00631397,3116.3,3116.2,0.84992034]
[1642523412506,15.00631397,3116.3,3116.2,3.24992034]
[1642523412507,14.95631397,3116.3,3116.2,3.24992034]
[1642523412892,14.95631397,3116.3,3116.2,4.24992034]
[1642523413088,14.87631397,3116.3,3116.2,4.24992034]
[1642523414435,14.87631397,3116.3,3116.2,0.72162034]
[1642523414636,15.12631397,3116.3,3116.2,0.72162034]
[1642523414835,15.25461397,3116.3,3116.2,2.41209502]
[1642523415238,15.20461397,3116.3,3116.2,2.41209502]
[1642523415638,15.20461397,3116.3,3116.2,0.72162034]
[1642523416639,15.50461397,3116.3,3116.2,0.72162034]
[1642523417040,17.25531005,3116.3,3116.2,0.72162034]
[1642523417240,15.20461397,3116.3,3116.2,0.72162034]
[1642523417843,15.15461397,3116.3,3116.2,0.72162034]
[1642523418781,15.02631397,3116.3,3116.2,0.72162034]
[1642523421490,15.02631397,3116.3,3115.5,0.1283]
[1642523421491,2.95,3116.2,3115.5,0.1283]
[1642523421691,0.80257,3116.1,3115.5,0.1283]
[1642523421932,1.10257,3116.1,3115.6,0.00341054]
[1642523422334,1.36839661,3115.9,3115.6,1.60840054]
[1642523422535,1.66839661,3115.9,3115.6,3.3011524]
[1642523422733,1.66839661,3115.9,3115.7,0.00284212]
[1642523423435,1.66839661,3115.9,3115.7,1.69559398]
[1642523423436,2.47091661,3115.9,3115.7,1.69559398]
[1642523423638,2.17091661,3115.9,3115.7,2.69559398]
[1642523423834,2.17091661,3115.9,3115.8,0.0022737]
[1642523424437,2.17091661,3115.9,3115.8,1.69502556]
[1642523424635,1.66839661,3115.9,3115.8,1.69502556]
[1642523425887,2.47092461,3115.9,3115.8,1.69502556]
[1642523426292,0.3,3115.9,3115.8,1.69502556]
[1642523426690,1.60503,3116.0,3115.8,1.69502556]
[1642523426991,1.60503,3116.0,3115.9,0.00170527]
[1642523428195,1.90503,3116.0,3115.9,1.69445713]
[1642523428391,1.85503,3116.0,3115.9,1.69445713]
[1642523429638,1.55503,3116.0,3115.9,1.69445713]
[1642523429839,14.87631397,3116.3,3115.9,1.69445713]
[1642523430040,15.67861397,3116.3,3115.9,1.69445713]
[1642523430340,15.67861397,3116.3,3116.0,0.12943685]
[1642523430745,15.67861397,3116.3,3116.1,2.31887364]
[1642523430943,15.67861397,3116.3,3116.1,3.60245138]
[1642523431446,15.97861397,3116.3,3116.0,0.93174685]
[1642523431841,15.92861397,3116.3,3116.0,0.93174685]
[1642523432042,15.92861397,3116.3,3116.2,1.69275186]
[1642523432043,16.05691397,3116.3,3116.2,1.69275186]
[1642523432442,18.90521904,3116.3,3116.2,1.69275186]
[1642523432641,18.77691904,3116.3,3116.2,1.69275186]
[1642523433044,17.07346906,3116.3,3116.2,1.69275186]
[1642523433288,18.09213954,3116.3,3116.1,1.69486078]
[1642523434089,19.93333551,3116.3,3116.1,1.69486078]
[1642523434488,18.91466503,3116.3,3116.1,0.00210892]
[1642523436092,17.07346906,3116.3,3116.1,0.00210892]
[1642523436291,1.01972383,3116.2,3116.1,0.00210892]
[1642523437134,15.92861397,3116.3,3116.1,0.00210892]
[1642523437335,15.62861397,3116.3,3116.1,1.69486078]
[1642523437535,14.87631397,3116.3,3116.1,3.37008078]
[1642523437738,1.78349789,3117.0,3116.2,5.76211238]
[1642523437938,1.78349789,3117.0,3116.5,0.80213]
[1642523438137,0.80216,3116.8,3116.6,0.02368287]
[1642523438537,0.00284211,3116.7,3116.6,3.62368287]
[1642523438737,0.00284211,3116.7,3116.6,0.93049]
[1642523439141,0.75500211,3116.8,3116.6,0.93049]
[1642523439347,1.05500211,3116.8,3116.6,0.80219]
[1642523439545,0.75500211,3116.8,3116.6,0.80219]
[1642523439745,0.75500211,3116.8,3116.5,0.80213]
[1642523439944,1.01965981,3116.7,3116.6,1.69275186]
[1642523440547,1.44795981,3116.7,3116.6,1.69275186]
[1642523440841,1.44795981,3116.7,3116.0,0.00113685]
[1642523440842,6.25,3116.6,3116.0,0.00113685]
[1642523441040,0.1283,3116.5,3116.0,0.00113685]
[1642523441240,0.1283,3116.5,3116.2,0.00284211]
[1642523441639,1.5391086,3116.3,3116.2,0.00284211]
[1642523441838,1.6674086,3116.3,3116.2,0.00284211]
[1642523442043,1.8391086,3116.3,3116.2,0.00284211]
[1642523443640,0.25,3116.3,3116.2,0.00284211]
[1642523444041,0.80249,3116.4,3116.2,0.00284211]
[1642523444440,0.80249,3116.4,3116.2,0.80513211]
[1642523444842,0.80249,3116.4,3116.3,0.00227369]
[1642523445243,0.93079,3116.4,3116.2,0.00284211]
[1642523445444,4.3783,3116.3,3116.2,0.00284211]
[1642523445642,4.6783,3116.3,3116.2,0.00284211]
[1642523445843,4.9783,3116.3,3116.2,0.00284211]
[1642523446044,5.78084,3116.3,3116.2,0.00284211]
[1642523447451,5.78497408,3116.3,3116.2,0.00284211]
[1642523447647,5.73497408,3116.3,3116.2,0.00284211]
[1642523447850,1.48497408,3116.3,3116.2,0.00284211]
[1642523448490,1.43497408,3116.3,3116.2,0.00284211]
[1642523449093,0.63243408,3116.3,3116.2,0.00284211]
[1642523449494,0.33243408,3116.3,3116.2,0.00284211]
[1642523449694,0.20413408,3116.3,3116.2,0.00284211]
[1642523449897,1.23079,3116.4,3116.2,0.00284211]
[1642523450195,1.23079,3116.4,3116.2,0.80528211]
[1642523450597,1.23079,3116.4,3116.3,0.00227369]
[1642523450796,1.10249,3116.4,3116.3,0.00227369]
[1642523452840,1.05249,3116.4,3116.3,0.00227369]
[1642523453640,0.75249,3116.4,3116.3,0.00227369]
[1642523454143,1.6045,3116.8,3116.4,2.57264359]
[1642523454340,1.6045,3116.8,3116.5,0.1283]
[1642523454542,1.6045,3116.8,3116.5,0.12943684]
[1642523455140,1.6045,3116.8,3116.5,0.93170684]
[1642523455340,1.6045,3116.8,3116.5,0.80340684]
[1642523455541,0.3,3116.6,3116.5,0.00113684]
[1642523456192,0.3,3116.6,3116.3,0.00227369]
[1642523456391,1.10245,3116.6,3116.3,0.00227369]
[1642523457494,1.9048836,3116.6,3116.3,0.00227369]
[1642523457692,1.60474,3116.5,3116.3,0.80468369]
[1642523458092,1.75441361,3116.9,3116.4,0.13000527]
[1642523458293,0.80216,3116.8,3116.4,1.10000527]
[1642523458492,0.80216,3116.8,3116.5,0.00113684]
[1642523458694,0.80216,3116.8,3116.6,0.1283]
[1642523459547,0.80216,3116.8,3116.6,1.31718504]
[1642523459941,0.80216,3116.8,3116.6,2.31718504]
[1642523460144,0.80216,3116.8,3116.6,1.31718504]
[1642523461345,0.0022326,3117.2,3116.7,1.61642821]
[1642523461544,0.0022326,3117.2,3116.8,0.1283]
[1642523461742,0.0022326,3117.2,3116.9,0.80208]
[1642523462544,0.0022326,3117.2,3117.1,4.45978226]
[1642523462945,0.00507472,3117.2,3117.1,0.93036]
[1642523463189,0.0097716,3117.4,3117.0,0.80206]
[1642523463190,0.75717472,3117.3,3117.0,0.80206]
[1642523463791,0.3,3117.2,3117.1,1.61642821]
[1642523463996,4.5583944,3117.2,3117.1,1.61642821]
[1642523464196,4.6866944,3117.2,3117.1,1.61642821]
[1642523464397,5.5,3117.1,3116.6,1.60458]
[1642523464596,0.1283,3117.0,3116.6,1.60458]
[1642523464796,0.1283,3117.0,3116.7,0.00284212]
[1642523464997,0.4283,3117.0,3116.7,0.00284212]
[1642523465196,0.80242,3116.9,3116.7,0.00284212]
[1642523465399,2.0331795,3117.0,3116.6,0.00341054]
[1642523465400,3.38404947,3116.7,3116.6,0.00341054]
[1642523465608,3.51234947,3116.7,3116.6,0.00341054]
[1642523465797,1.36918513,3116.7,3116.6,0.00341054]
[1642523466596,1.24088513,3116.7,3116.6,0.00341054]
[1642523467036,1.23074,3116.9,3116.6,0.00341054]
[1642523467238,1.23074,3116.9,3116.6,0.80571054]
[1642523467537,1.23074,3116.9,3116.7,0.00284212]
[1642523467941,1.26129971,3116.9,3116.7,0.00284212]
[1642523468138,6.16806722,3116.8,3116.7,0.00284212]
[1642523468540,6.46806722,3116.8,3116.7,0.00284212]
[1642523468742,6.46806722,3116.8,3116.6,0.00341054]
[1642523468943,6.46806722,3116.8,3116.6,0.00131054]
[1642523469144,1.6051098,3116.6,3115.9,0.1283]
[1642523469343,1.20852984,3116.0,3115.9,0.1283]
[1642523469545,0.1283,3116.5,3116.0,0.00341054]
[1642523470145,2.53598,3116.5,3116.0,0.00341054]
[1642523470344,4.5,3116.4,3115.9,0.08171054]
[1642523470548,1.26760231,3116.0,3115.9,0.08171054]
[1642523470804,1.26760231,3116.0,3115.5,0.1283]
[1642523471012,1.56760231,3116.0,3115.4,0.1283]
[1642523471207,1.56760231,3116.0,3115.6,0.00227369]
[1642523471405,2.49851231,3116.0,3115.6,0.00227369]
[1642523471808,2.28274663,3115.9,3115.3,0.00397897]
[1642523472610,3.08534493,3115.9,3115.6,1.60508]
[1642523473009,3.38536663,3115.9,3115.7,0.00170527]
[1642523473213,3.08536663,3115.9,3115.7,0.00170527]
[1642523473410,0.80262,3115.9,3115.7,0.00170527]
[1642523473612,1.10262,3115.9,3115.7,0.00170527]
[1642523474439,0.80262,3115.9,3115.7,0.00170527]
[1642523474640,2.85209011,3115.9,3115.7,0.00170527]
[1642523474840,3.65468591,3115.9,3115.7,0.00170527]
[1642523475142,6.3783,3115.8,3115.7,0.00170527]
[1642523475341,7.8802,3115.8,3115.7,0.00170527]
[1642523475644,0.80285,3115.7,3115.3,0.00397897]
[1642523475849,0.93116,3115.6,3115.3,0.00397897]
[1642523476045,1.23116,3115.6,3115.3,0.00397897]
[1642523476245,1.28577988,3115.5,3115.3,0.00397897]
[1642523476446,6.0783,3115.4,3115.3,0.00397897]
[1642523476649,7.1403,3115.4,3115.3,0.00397897]
[1642523476846,7.0903,3115.4,3115.3,0.00397897]
[1642523477045,1.94314,3115.4,3115.3,0.00397897]
[1642523477247,0.712,3115.4,3115.3,0.00397897]
[1642523477546,1.73409,3115.5,3115.3,0.00397897]
[1642523477746,1.60579,3115.5,3115.2,0.08227897]
[1642523477947,2.4085022,3115.5,3115.2,0.08227897]
[1642523478217,0.3,3115.4,3115.2,0.08227897]
[1642523478417,1.90579,3115.5,3115.2,0.08227897]
[1642523478816,1.2235087,3115.4,3115.2,0.08227897]
[1642523479217,2.8291228,3115.4,3115.2,0.08227897]
[1642523479419,3.74787239,3115.4,3115.2,0.08227897]
[1642523479716,4.55067239,3115.4,3115.2,0.08227897]
[1642523479917,0.3,3115.3,3115.2,0.08227897]
[1642523480217,0.3,3115.3,3114.1,2.01203839]
[1642523480218,6.55,3115.3,3114.1,2.01203839]
[1642523480425,6.55,3115.3,3114.1,1.73563845]
[1642523480426,1.60594,3115.2,3114.1,1.73563845]
[1642523480619,1.60594,3115.2,3114.2,0.00625265]
[1642523480620,0.80297,3115.1,3114.2,0.00625265]
[1642523480816,0.3,3114.9,3114.2,0.00625265]
[1642523481019,0.5904,3114.8,3114.2,0.00625265]
[1642523481215,18.65,3114.6,3113.9,0.00795792]
[1642523481416,0.5903,3114.5,3113.8,1.60723845]
[1642523481616,5.95,3114.2,3113.8,3.845e-05]
[1642523481816,0.1283,3114.1,3113.8,3.845e-05]
[1642523482049,0.12943684,3114.1,3113.8,3.845e-05]
[1642523482251,1.17649375,3114.0,3113.8,3.845e-05]
[1642523482451,5.8,3113.8,3113.6,0.0001201]
[1642523482650,5.48162,3113.7,3113.6,0.0001201]
[1642523482849,5.48162,3113.7,3113.3,3.2203587]
[1642523482850,5.78162,3113.7,3113.3,3.2203587]
[1642523483050,6.08162,3113.7,3113.2,1.92019195]
[1642523483252,6.08162,3113.7,3113.4,0.00284212]
[1642523483453,4.64645443,3113.5,3113.4,0.00284212]
[1642523483655,5.07475443,3113.5,3113.4,0.00284212]
[1642523483852,2.77475443,3113.5,3113.4,0.00284212]
[1642523484652,2.64645443,3113.5,3113.4,0.00284212]
[1642523484850,2.64645443,3113.5,3113.2,0.00397897]
[1642523485252,0.8033,3113.6,3113.3,0.1283]
[1642523485451,1.60627,3114.0,3113.3,0.93145]
[1642523485704,0.00113684,3114.1,3113.3,0.93145]
[1642523485904,0.00113684,3114.1,3113.3,2.59071059]
[1642523486104,0.00113684,3114.1,3113.3,0.1283]
[1642523486309,1.48057535,3113.8,3113.5,1.60603]
[1642523486804,1.78057535,3113.8,3113.6,0.00170527]
[1642523487005,0.3,3113.8,3113.6,0.00170527]
[1642523487408,0.30599701,3114.1,3113.6,0.00170527]
[1642523487807,0.00599701,3114.1,3113.6,0.00170527]
[1642523488007,0.00119701,3114.1,3113.6,2.44219527]
[1642523488209,0.00119701,3114.1,3113.7,0.1283]
[1642523488410,0.00119701,3114.1,3113.7,2.53801685]
[1642523488610,0.00119701,3114.1,3113.7,3.53801685]
[1642523489673,0.00119701,3114.1,3113.7,0.12943685]
[1642523489876,1.41575453,3113.8,3113.7,0.12943685]
[1642523490074,1.41575453,3113.8,3113.7,0.00113685]
[1642523490474,1.71575453,3113.8,3113.7,0.00113685]
[1642523490875,1.71575453,3113.8,3113.5,0.0022737]
[1642523491077,1.71575453,3113.8,3113.2,0.00397897]
[1642523491382,6.28850559,3113.8,3113.2,0.00397897]
[1642523491577,0.1283,3113.7,3113.2,0.00397897]
[1642523491777,0.1283,3113.7,3113.1,0.00454739]
[1642523491978,0.8033278,3113.5,3112.7,0.00682109]
[1642523492277,1.19362065,3112.9,3112.6,0.76013109]
[1642523492678,1.49362065,3112.9,3112.6,0.76013109]
[1642523493079,1.39362065,3112.9,3112.6,0.76013109]
[1642523493302,1.39362065,3112.9,3112.6,0.66013109]
[1642523493503,1.39362065,3112.9,3112.8,3.18740622]
[1642523493504,1.34362065,3112.9,3112.8,3.18740622]
[1642523493704,1.34362065,3112.9,3112.8,0.88740622]
[1642523493906,1.1447575,3112.9,3112.8,0.88740622]
[1642523494304,3.35923586,3112.9,3112.8,0.88740622]
[1642523495603,3.35923586,3112.9,3112.7,0.88740622]
[1642523495803,1.1447575,3112.9,3112.7,0.88740622]
[1642523496404,1.1447575,3112.9,3112.5,1.60655]
[1642523496405,0.1285,3112.8,3112.5,1.60655]
[1642523497451,0.1285,3112.8,3112.0,1.67549969]
[1642523497452,5.95,3112.6,3112.0,1.67549969]
[1642523497653,0.02899357,3112.4,3111.9,3.16818987]
[1642523497851,0.1285,3112.3,3112.1,0.00341054]
[1642523498252,0.0225617,3112.1,3111.2,0.1285]
[1642523498451,0.01934302,3111.9,3111.3,0.80372]
[1642523498652,2.3526141,3111.5,3111.3,0.80826738]
[1642523498855,2.2526141,3111.5,3111.3,0.80826738]
[1642523499258,1.5489041,3111.5,3111.3,0.80826738]
[1642523499456,2.6731041,3111.5,3111.3,0.80826738]
[1642523499657,2.9731041,3111.5,3111.3,0.80826738]
[1642523500705,4.85,3111.4,3111.0,0.6285]
[1642523500909,0.83057192,3111.2,3110.3,4.63710322]
[1642523501104,0.01676376,3111.0,3110.3,3.07170975]
[1642523501305,0.01676376,3111.0,3110.1,2.4248767]
[1642523501306,1.12244345,3110.8,3109.9,0.12859]
[1642523501505,1.22752353,3110.0,3109.9,0.12859]
[1642523501709,0.1285,3110.7,3109.9,1.73662]
[1642523501710,0.03881845,3110.1,3109.9,1.73662]
[1642523501909,0.03715314,3110.6,3109.9,0.02859]
[1642523502105,0.1285,3111.2,3110.0,0.00738951]
[1642523502304,0.00365785,3111.1,3110.5,0.00415846]
[1642523502505,0.1285,3111.2,3110.5,0.00415846]
[1642523502705,0.1285,3111.2,3110.6,0.00397897]
[1642523503106,0.1285,3111.3,3110.6,0.80774897]
[1642523503304,0.1285,3111.4,3110.6,0.80774897]
[1642523503505,0.1285,3111.4,3110.7,0.00341054]
[1642523503706,0.0285,3111.4,3110.7,1.61085054]
[1642523503907,0.1285,3111.4,3110.7,1.61085054]
[1642523504106,0.1285,3111.4,3110.8,0.00284212]
[1642523504554,0.83478273,3111.3,3110.8,0.00284212]
[1642523504751,0.7285,3111.2,3110.8,0.00284212]
[1642523507356,0.1285,3111.2,3110.8,0.00284212]
[1642523507660,0.1285,3111.2,3111.0,0.00284869]
[1642523507859,0.1285,3111.4,3111.0,0.00284869]
[1642523508057,0.1285,3111.4,3111.1,0.00113685]
[1642523508058,0.462,3111.3,3111.1,0.00113685]
[1642523508300,6.0785,3111.2,3111.1,0.00113685]
[1642523508502,8.683877,3111.2,3111.1,0.00113685]
[1642523509104,10.683877,3111.2,3111.1,0.00113685]
[1642523511712,4.605377,3111.2,3111.1,0.00113685]
[1642523511948,5.067377,3111.2,3111.1,0.00113685]
[1642523512153,5.95,3111.0,3110.5,1.6077]
[1642523512356,5.95,3111.0,3109.9,0.02859]
[1642523512357,0.46652296,3110.9,3109.9,0.02859]
[1642523512555,6.0785,3110.8,3110.6,0.00284212]
[1642523512852,6.0785,3110.8,3110.0,0.00625266]
[1642523512853,7.2161,3110.7,3110.0,0.00625266]
[1642523513054,1.5453135,3110.1,3110.0,0.00625266]
[1642523513254,3.50321139,3110.1,3110.0,0.00625266]
[1642523513458,4.67751139,3110.1,3110.0,0.00625266]
[1642523513655,4.97751139,3110.1,3110.0,0.00625266]
[1642523515255,5.43951139,3110.1,3110.0,0.00625266]
[1642523515904,6.24377139,3110.1,3110.0,0.00625266]
[1642523516305,5.43951139,3110.1,3110.0,0.00625266]
[1642523516506,5.26801139,3110.1,3110.0,0.00625266]
[1642523516706,5.26801139,3110.1,3109.4,0.0096632]
[1642523516707,3.29419789,3110.1,3109.4,0.0096632]
[1642523516909,2.41989789,3110.1,3109.5,1.73677]
[1642523517305,2.41989789,3110.1,3109.6,0.00852635]
[1642523517511,2.41989789,3110.1,3109.8,0.80408]
[1642523517808,2.41989789,3110.1,3109.9,0.00682108]
[1642523518307,3.01989789,3110.1,3109.9,0.00682108]
[1642523518507,3.14839789,3110.1,3109.9,0.00682108]
[1642523518706,3.14839789,3110.1,3109.5,0.1285]
[1642523518707,3.14839789,3110.1,3109.6,0.00852635]
[1642523518907,0.80428,3109.9,3109.6,0.00852635]
[1642523519107,0.3,3109.8,3109.6,0.00852635]
[1642523519308,7.02664709,3109.7,3109.2,0.01080005]
[1642523519554,0.80432,3109.6,3109.2,0.01080005]
[1642523519754,1.10432,3109.6,3109.2,0.01080005]
[1642523519954,0.80432,3109.6,3109.2,0.01080005]
[1642523520162,0.83716647,3109.7,3109.3,0.80419]
[1642523520163,0.03284707,3109.7,3109.3,0.80419]
[1642523520356,5.67580295,3110.1,3109.3,0.80419]
[1642523520557,0.80421,3109.6,3109.4,0.0096632]
[1642523521258,5.88648,3109.5,3109.4,0.0096632]
[1642523521457,5.95,3109.4,3109.0,0.4357231]
[1642523521657,6.8829,3109.4,3109.2,0.00113685]
[1642523521857,7.97657664,3109.4,3109.2,0.00113685]
[1642523522461,9.02316183,3109.3,3108.5,0.1285]
[1642523522663,5.45759627,3109.2,3108.5,0.0785]
[1642523522859,1.81099014,3109.2,3108.6,0.00341054]
[1642523523060,0.6,3109.1,3108.6,0.00341054]
[1642523523323,4.62381848,3109.0,3108.6,0.00341054]
[1642523523524,2.85324492,3108.9,3108.6,0.00341054]
[1642523523727,0.1285,3108.8,3108.6,0.00341054]
[1642523523925,2.0529987,3108.8,3108.6,0.00341054]
[1642523524126,0.6,3108.7,3108.6,0.00341054]
[1642523524328,4.9285,3108.7,3108.6,0.00341054]
[1642523525627,0.7285,3108.7,3108.6,0.00341054]
[1642523526428,1.1905,3108.7,3108.6,0.00341054]
[1642523526628,7.1405,3108.7,3108.6,0.00341054]
[1642523527063,5.95,3108.6,3108.5,0.0785]
[1642523527267,1.6092596,3108.4,3107.6,0.1286]
[1642523527465,0.83835294,3108.3,3107.6,0.1286]
[1642523527664,0.7287,3108.2,3107.7,0.00511581]
[1642523527872,0.6787,3108.2,3107.7,0.00511581]
[1642523528064,1.1407,3108.2,3107.7,0.00511581]
[1642523528665,1.0907,3108.2,3107.7,0.00511581]
[1642523528965,1.60933,3108.0,3107.7,0.00511581]
[1642523529166,0.84402397,3108.1,3107.7,0.00511581]
[1642523529167,0.03935187,3108.1,3107.7,0.00511581]
[1642523529365,0.83989521,3108.3,3107.8,0.8045]
[1642523529768,0.83989521,3108.3,3107.9,0.00397896]
[1642523529967,0.80464,3108.3,3107.9,0.00397896]
[1642523530170,0.84223111,3108.8,3108.0,0.1285]
[1642523530372,0.6,3108.8,3108.2,0.80443]
[1642523530568,1.60883,3108.9,3108.2,0.80443]
[1642523530803,0.03395084,3109.0,3108.3,0.00170527]
[1642523531103,0.00113685,3108.8,3108.3,0.00170527]
[1642523531506,1.98254591,3108.4,3108.3,0.00170527]